bitfinex-derivatives/quotes_SOLF0:USTF0_20241217
["timestamp","ask_amount","ask_price","bid_price","bid_amount"]
[1734471694101,2.2114,226.13,226.07,6.60212955]
[1734471694305,2.2114,226.13,226.09,2.2117]
[1734471695098,2.2115,226.12,226.07,6.60212955]
[1734471695305,2.2115,226.12,226.08,2.2119]
[1734471696304,6.60212955,226.14,225.98,5.2836912]
[1734471696505,2.2118,226.1,226.05,2.2121]
[1734471696700,2.2118,226.1,226.06,2.1]
[1734471697100,6.60212955,226.14,226.06,8.70212955]
[1734471697502,6.60212955,226.16,226.08,6.60212955]
[1734471698411,2.2114,226.13,226.1,2.2116]
[1734471702620,10.85716354,226.17,226.06,2.1]
[1734471702621,6.60212955,226.12,226.06,2.1]
[1734471703120,2.2118,226.1,226.06,4.312]
[1734471703721,2.2118,226.09,226.06,4.312]
[1734471704419,6.60212955,226.12,226.06,2.1]
[1734471704627,6.60212955,226.12,225.98,5.2836912]
[1734471704628,6.60212955,226.12,226.04,2.2122]
[1734471704819,6.60212955,226.12,226.04,4.3122]
[1734471705025,2.2117,226.1,226.04,4.3122]
[1734471705219,6.60212955,226.12,226.04,2.2122]
[1734471705415,6.60212955,226.08,226.04,2.1]
[1734471705622,2.2121,226.06,226.04,2.1]
[1734471707624,6.60212955,226.08,226.04,2.1]
[1734471707625,2.2122,226.05,226.04,2.1]
[1734471709923,6.60212955,226.06,225.91,2.1]
[1734471710123,6.60212955,226.06,225.8,6.1648564]
[1734471710124,6.60212955,225.93,225.85,1.4595]
[1734471710325,8.81592955,225.89,225.84,2.2141]
[1734471710627,6.60212955,225.85,225.8,6.1648564]
[1734471711029,8.81652955,225.83,225.8,6.1648564]
[1734471711332,6.60212955,225.81,225.8,6.1648564]
[1734471711627,8.70212955,225.81,225.77,49.31730951]
[1734471711831,6.60212955,225.78,225.77,49.31730951]
[1734471712133,2.215,225.76,225.75,74.00115591]
[1734471712327,8.81712955,225.76,225.75,74.00115591]
[1734471713438,8.81712955,225.76,225.66,2.1]
[1734471713733,2.2155,225.71,225.65,184.75690351]
[1734471713933,8.81762955,225.71,225.65,184.75690351]
[1734471714131,12.59580049,225.71,225.65,184.75690351]
[1734471714528,2.2157,225.69,225.65,184.75690351]
[1734471714729,10.38030049,225.71,225.65,184.75690351]
[1734471714930,10.38030049,225.77,225.65,189.07290351]
[1734471715134,10.38030049,225.77,225.65,186.85690351]
[1734471716032,15.82363348,225.77,225.65,189.07300351]
[1734471716233,10.38030049,225.71,225.65,184.75690351]
[1734471717134,2.2157,225.69,225.65,184.75690351]
[1734471719040,2.2159,225.68,225.61,2.1]
[1734471720337,10.38030049,225.71,225.61,2.1]
[1734471720534,2.1,225.74,225.61,2.1]
[1734471720535,5.44333299,225.77,225.63,10.38030049]
[1734471720728,15.82363348,225.77,225.63,10.38030049]
[1734471721035,5.44333299,225.77,225.68,2.2158]
[1734471721534,2.12,225.78,225.68,2.2158]
[1734471721739,2.12,225.78,225.68,5.1807]
[1734471722539,2.2151,225.75,225.68,5.1807]
[1734471722935,2.2151,225.75,225.68,2.9649]
[1734471723134,2.215,225.76,225.69,2.2157]
[1734471723735,2.2149,225.78,225.71,2.2155]
[1734471724240,7.42743503,225.8,225.71,2.2155]
[1734471724535,2.2149,225.77,225.71,2.2155]
[1734471725130,2.2149,225.77,225.68,13.34520049]
[1734471726530,2.2149,225.77,225.71,2.2155]
[1734471726734,2.2149,225.77,225.68,13.34520049]
[1734471727540,2.2149,225.77,225.71,2.2155]
[1734471727838,10.38030049,225.79,225.72,2.12]
[1734471728038,10.38030049,225.79,225.72,0.30531391]
[1734471728339,2.2152,225.74,225.68,5.0849]
[1734471728536,10.38030049,225.79,225.68,2.9649]
[1734471728837,10.38030049,225.79,225.65,10.38030049]
[1734471728838,2.2158,225.68,225.65,2.12]
[1734471729534,2.2159,225.67,225.62,2.2164]
[1734471729736,2.2159,225.67,225.59,4.4186]
[1734471729737,10.38030049,225.7,225.6,2.12]
[1734471730133,10.38030049,225.7,225.6,2.2166]
[1734471730333,10.38030049,225.7,225.59,6.5386]
[1734471730531,10.38030049,225.67,225.59,5.0762]
[1734471730733,10.38030049,225.67,225.59,0.74478384]
[1734471730935,2.2161,225.65,225.59,0.74478384]
[1734471731135,10.38030049,225.67,225.57,2.12]
[1734471731941,2.12,225.69,225.57,2.12]
[1734471732137,10.38030049,225.7,225.57,7.44109093]
[1734471732440,2.12,225.72,225.59,10.38030049]
[1734471732743,10.38030049,225.73,225.59,10.38030049]
[1734471732744,2.2159,225.67,225.62,2.2164]
[1734471733042,2.2159,225.67,225.62,4.3364]
[1734471733248,10.38030049,225.7,225.62,2.12]
[1734471733441,2.2162,225.65,225.62,2.12]
[1734471733635,12.50030049,225.7,225.58,2.12]
[1734471735345,12.50030049,225.7,225.59,2.2167]
[1734471735346,2.2163,225.63,225.59,2.2167]
[1734471736546,2.2163,225.63,225.57,3.63776166]
[1734471736746,12.50030049,225.7,225.57,3.63776166]
[1734471737149,2.2162,225.64,225.59,2.2167]
[1734471739844,2.2162,225.64,225.6,2.2166]
[1734471741153,2.2162,225.64,225.57,3.63776166]
[1734471741353,2.2162,225.64,225.59,2.2167]
[1734471741554,2.2162,225.64,225.57,3.63776166]
[1734471741555,2.2163,225.63,225.57,3.63776166]
[1734471742452,2.2164,225.62,225.57,2.12]
[1734471743451,2.2164,225.62,225.58,2.2168]
[1734471744157,10.38030049,225.67,225.58,2.2168]
[1734471744351,2.2163,225.63,225.58,2.2168]
[1734471744558,2.2163,225.63,225.59,2.2167]
[1734471746258,178.14649182,225.64,225.53,10.38030049]
[1734471746452,178.14649182,225.64,225.54,2.12]
[1734471746959,207.48679024,225.63,225.54,2.12]
[1734471747154,2.2164,225.62,225.54,2.12]
[1734471747555,178.14649182,225.63,225.59,2.2167]
[1734471747556,180.36279182,225.63,225.59,2.2167]
[1734471748456,178.14649182,225.63,225.59,2.2167]
[1734471748655,2.2164,225.62,225.59,2.2167]
[1734471749061,2.2164,225.62,225.54,2.12]
[1734471749260,2.2164,225.62,225.58,2.2168]
[1734471752059,178.14649182,225.63,225.6,6.6453583]
[1734471752260,178.14649182,225.63,225.53,5.45417143]
[1734471752261,178.14649182,225.63,225.62,6.6453583]
[1734471752560,180.0670915,225.65,225.62,8.7653583]
[1734471752755,180.0670915,225.65,225.64,6.6453583]
[1734471753556,180.0670915,225.65,225.64,8.8615583]
[1734471753759,238.01203384,225.67,225.64,6.6453583]
[1734471753953,238.01203384,225.67,225.62,2.12]
[1734471754462,237.17298763,225.72,225.64,10.37665026]
[1734471755457,237.17298763,225.72,225.7,2.2156]
[1734471756855,237.17298763,225.72,225.71,2.2155]
[1734471757466,237.17298763,225.72,225.7,2.2156]
[1734471758763,13.33435026,225.78,225.7,2.2156]
[1734471758963,10.78101725,225.77,225.7,2.2156]
[1734471759358,2.2152,225.74,225.7,2.2156]
[1734471759562,10.78101725,225.77,225.68,2.12]
[1734471759759,10.78101725,225.77,225.71,2.2155]
[1734471759960,10.78101725,225.77,225.68,2.12]
[1734471760164,27.60381692,225.81,225.73,2.2153]
[1734471760362,10.77811687,225.8,225.74,2.12]
[1734471760565,181.73540182,225.82,225.74,2.12]
[1734471761560,181.73540182,225.82,225.77,2.2148]
[1734471761760,181.73540182,225.82,225.74,2.12]
[1734471761965,182.2812915,225.84,225.74,2.12]
[1734471761966,180.0670915,225.84,225.8,2.2146]
[1734471762363,180.0670915,225.84,225.79,2.12]
[1734471762563,180.0670915,225.84,225.81,2.2144]
[1734471763265,3.738,225.86,225.81,2.2144]
[1734471763466,1.5239,225.86,225.79,2.12]
[1734471763663,2.214,225.87,225.79,2.12]
[1734471764260,2.214,225.86,225.81,2.2145]
[1734471764665,2.214,225.86,225.79,2.12]
[1734471764865,2.214,225.87,225.82,2.2144]
[1734471765065,10.37665026,225.89,225.79,2.12]
[1734471765265,10.75724344,225.88,225.79,2.12]
[1734471765569,10.37665026,225.89,225.79,2.12]
[1734471765570,2.2141,225.86,225.81,2.2145]
[1734471768666,2.2141,225.86,225.69,4.4978]
[1734471768667,2.2146,225.81,225.77,2.1]
[1734471768969,10.37665026,225.89,225.77,2.1]
[1734471769363,2.214,225.87,225.82,2.2144]
[1734471770369,2.214,225.86,225.82,2.2144]
[1734471771368,2.2142,225.85,225.82,2.2144]
[1734471772270,2.2142,225.85,225.77,2.1]
[1734471772669,10.37665026,225.89,225.77,2.1]
[1734471772969,10.37665026,225.89,225.77,4.3149]
[1734471773269,10.37665026,225.86,225.77,4.3149]
[1734471774372,10.37665026,225.86,225.72,10.37665026]
[1734471774570,10.37665026,225.83,225.73,2.1]
[1734471774865,2.9329,225.82,225.73,2.1]
[1734471775062,2.9329,225.82,225.67,5.57340465]
[1734471775063,10.37665026,225.77,225.67,0.33313]
[1734471775566,2.2156,225.71,225.67,0.33313]
[1734471776573,2.2156,225.7,225.67,0.33313]
[1734471776771,6.64027808,225.73,225.67,0.33313]
[1734471777271,2.2157,225.69,225.67,0.33313]
[1734471780666,10.37683771,225.75,225.67,0.33313]
[1734471780667,2.2158,225.68,225.67,0.33313]
[1734471782264,1.5432,225.71,225.61,7.67081682]
[1734471782265,2.1,225.7,225.61,7.67081682]
[1734471782575,10.37683771,225.69,225.57,2.1]
[1734471783563,2.2164,225.62,225.58,2.2167]
[1734471784371,2.2164,225.62,225.57,2.1]
[1734471784968,2.2167,225.59,225.55,2.1]
[1734471785368,2.1,225.65,225.55,2.1]
[1734471785670,2.2167,225.59,225.55,2.1]
[1734471786070,2.2167,225.59,225.54,7.59355242]
[1734471786365,2.2177,225.49,225.44,2.2181]
[1734471786574,2.2177,225.49,225.41,2.1]
[1734471787273,10.37683771,225.55,225.41,2.1]
[1734471787576,10.37683771,225.52,225.41,2.2185]
[1734471787976,12.47683771,225.52,225.41,2.2185]
[1734471788270,12.47683771,225.52,225.42,2.1]
[1734471789271,2.218,225.47,225.42,2.1]
[1734471790171,12.47683771,225.52,225.42,2.1]
[1734471790375,12.47683771,225.52,225.4,2.2185]
[1734471790573,12.47683771,225.52,225.41,2.1]
[1734471790869,2.218,225.47,225.41,4.3185]
[1734471791467,12.47683771,225.52,225.41,2.1]
[1734471792471,2.2179,225.47,225.42,2.2184]
[1734471792670,10.37683771,225.49,225.41,2.12]
[1734471792873,1.4638,225.48,225.41,2.12]
[1734471793065,2.2184,225.43,225.39,2.12]
[1734471796474,1.4638,225.48,225.39,2.12]
[1734471798075,2.2179,225.47,225.42,2.2184]
[1734471798581,2.218,225.46,225.42,2.2184]
[1734471798780,2.218,225.46,225.39,2.12]
[1734471798982,2.218,225.46,225.41,2.2185]
[1734471800578,2.218,225.46,225.39,2.12]
[1734471800774,1.4638,225.48,225.39,2.12]
[1734471801074,10.37683771,225.51,225.39,12.49683771]
[1734471801272,10.37683771,225.51,225.43,2.2182]
[1734471802079,2.2176,225.5,225.45,2.218]
[1734471802276,2.2176,225.5,225.45,2.12]
[1734471803381,2.2177,225.49,225.45,2.12]
[1734471804089,2.2176,225.51,225.45,4.338]
[1734471804282,10.37683771,225.54,225.45,4.338]
[1734471805082,10.37683771,225.54,225.45,2.12]
[1734471805285,2.2175,225.52,225.45,2.12]
[1734471805587,1.4643,225.55,225.45,2.12]
[1734471805888,1.4643,225.55,225.49,2.2176]
[1734471806089,1.4643,225.55,225.5,2.12]
[1734471806284,3.6815,225.55,225.5,2.12]
[1734471806490,1.4643,225.55,225.5,2.12]
[1734471806890,2.2173,225.54,225.5,2.12]
[1734471807987,2.2173,225.54,225.5,4.3376]
[1734471808990,2.217,225.56,225.52,2.2174]
[1734471810389,10.37683771,225.59,225.5,2.12]
[1734471811495,2.217,225.56,225.52,2.2174]
[1734471814294,2.2168,225.58,225.54,2.2171]
[1734471814493,10.37683771,225.59,225.5,2.12]
[1734471814897,12.59353771,225.59,225.54,2.2171]
[1734471815898,12.59353771,225.59,225.55,2.2171]
[1734471816998,2.2167,225.59,225.55,2.2171]
[1734471817996,1.4658,225.62,225.59,2.2166]
[1734471818199,8.11264042,225.62,225.56,8.74684042]
[1734471818798,8.11264042,225.62,225.57,2.2168]
[1734471819003,8.11264042,225.62,225.56,8.74684042]
[1734471820004,1.4658,225.62,225.56,2.1]
[1734471820507,1.4658,225.62,225.59,2.2167]
[1734471821799,1.4658,225.62,225.56,2.1]
[1734471821800,2.2162,225.65,225.56,2.1]
[1734471822005,10.38431453,225.66,225.56,2.1]
[1734471822798,2.2164,225.63,225.6,2.2166]
[1734471822996,179.77038367,225.68,225.61,2.1]
[1734471823203,179.77038367,225.68,225.62,2.1]
[1734471824008,179.77038367,225.68,225.65,2.216]
[1734471824301,179.77038367,225.68,225.62,2.1]
[1734471824903,179.77038367,225.68,225.66,2.2159]
[1734471825104,179.77038367,225.68,225.62,2.1]
[1734471825505,179.77038367,225.68,225.67,2.2159]
[1734471825804,179.77038367,225.68,225.67,4.3159]
[1734471827101,179.72743872,225.7,225.69,2.2157]
[1734471827405,11.89661453,225.74,225.67,2.1]
[1734471828202,1.5123,225.74,225.67,2.1]
[1734471828803,3.7276,225.74,225.69,2.2157]
[1734471829002,1.5123,225.74,225.69,2.2157]
[1734471829207,29.19559709,225.75,225.69,2.2157]
[1734471830004,1.4584,225.79,225.67,12.48431453]
[1734471830204,12.22134055,225.79,225.67,12.48431453]
[1734471830506,2.215,225.76,225.7,2.2156]
[1734471830706,2.215,225.76,225.67,12.48431453]
[1734471830902,10.38431453,225.8,225.67,12.48431453]
[1734471831108,2.2149,225.77,225.73,2.2152]
[1734471832202,2.2149,225.77,225.72,2.1]
[1734471833301,2.2146,225.8,225.72,2.1]
[1734471833608,1.5666,225.82,225.72,2.1]
[1734471833806,2.2146,225.81,225.72,2.1]
[1734471834209,1.5666,225.82,225.72,2.1]
[1734471835109,2.2147,225.8,225.76,2.215]
[1734471835308,2.2147,225.8,225.77,2.1]
[1734471836704,1.5666,225.82,225.71,10.38431453]
[1734471836911,1.5666,225.82,225.72,2.1]
[1734471836912,10.38431453,225.81,225.72,2.1]
[1734471837208,10.38431453,225.81,225.73,2.1]
[1734471837811,2.215,225.76,225.73,2.1]
[1734471838109,10.38431453,225.81,225.73,2.1]
[1734471838510,10.38431453,225.78,225.7,2.1]
[1734471838709,10.38431453,225.75,225.69,2.1]
[1734471838910,10.38431453,225.75,225.67,2.1]
[1734471839309,2.2157,225.7,225.67,2.1]
[1734471840913,2.2158,225.69,225.67,2.1]
[1734471842811,2.2158,225.68,225.67,2.1]
[1734471843010,6.6420286,225.7,225.67,2.1]
[1734471843204,2.2157,225.69,225.67,2.1]
[1734471843402,6.6420286,225.7,225.67,2.1]
[1734471843804,2.2158,225.68,225.67,2.1]
[1734471845211,2.2158,225.68,225.65,2.1]
[1734471845410,2.216,225.66,225.65,2.1]
[1734471845614,2.216,225.66,225.64,2.1]
[1734471845806,2.216,225.66,225.63,2.1]
[1734471848615,2.216,225.66,225.62,8.8584286]
[1734471848816,2.216,225.66,225.63,2.1]
[1734471850014,2.216,225.66,225.62,8.8584286]
[1734471850209,6.6420286,225.63,225.53,1.5552]
[1734471850418,6.6420286,225.61,225.54,6.6420286]
[1734471850911,6.6420286,225.61,225.56,2.217]
[1734471850912,8.8585286,225.61,225.56,2.217]
[1734471851110,8.8585286,225.61,225.56,4.317]
[1734471851111,6.6420286,225.61,225.56,4.317]
[1734471851311,6.6420286,225.61,225.56,2.1]
[1734471852618,2.2167,225.59,225.56,2.1]
[1734471853817,6.6420286,225.61,225.56,4.317]
[1734471853818,2.2166,225.6,225.56,4.317]
[1734471856316,2.2169,225.57,225.5,2.1]
[1734471856522,6.6420286,225.58,225.51,6.6420286]
[1734471856723,6.6420286,225.58,225.51,2.1]
[1734471857519,2.217,225.56,225.52,7.47590507]
[1734471857719,2.217,225.56,225.53,2.1]
[1734471859217,2.2171,225.55,225.53,2.1]
[1734471860019,6.6420286,225.56,225.4,1.5551]
[1734471860323,1.4837,225.66,225.4,3.0751]
[1734471860324,6.6420286,225.49,225.4,3.0751]
[1734471860527,6.6420286,225.49,225.42,6.6420286]
[1734471861122,6.6420286,225.47,225.33,1.504]
[1734471861322,6.6420286,225.45,225.37,2.1]
[1734471861516,6.6420286,225.45,225.38,6.6420286]
[1734471862624,2.2184,225.42,225.38,6.6420286]
[1734471863316,2.2184,225.42,225.39,2.16]
[1734471863522,2.2183,225.43,225.39,2.16]
[1734471864325,2.2183,225.43,225.38,8.8020286]
[1734471865527,2.2182,225.44,225.38,11.0207286]
[1734471866729,2.2181,225.46,225.4,6.6420286]
[1734471867128,2.1,225.5,225.42,6.6420286]
[1734471867129,6.6420286,225.49,225.42,6.6420286]
[1734471867432,6.6420286,225.49,225.43,2.16]
[1734471867628,2.2179,225.48,225.43,2.16]
[1734471867929,6.6420286,225.49,225.43,2.16]
[1734471868227,2.2182,225.44,225.38,2.16]
[1734471868422,6.6420286,225.43,225.36,6.6420286]
[1734471868628,6.6420286,225.43,225.37,2.16]
[1734471869827,6.6420286,225.43,225.36,2.16]
[1734471870535,2.2184,225.4,225.36,2.16]
[1734471871432,6.6420286,225.41,225.36,2.16]
[1734471871634,2.2184,225.39,225.36,2.16]
[1734471872733,10.40425543,225.44,225.36,2.16]
[1734471872923,13.33725543,225.47,225.36,2.16]
[1734471873128,2.933,225.47,225.36,12.56425543]
[1734471873727,1.5649,225.48,225.36,12.56425543]
[1734471873933,10.40425543,225.52,225.36,12.56425543]
[1734471874133,2.16,225.53,225.39,10.40425543]
[1734471874333,10.40425543,225.54,225.44,2.2179]
[1734471874639,10.40425543,225.54,225.45,2.16]
[1734471875236,2.2174,225.51,225.46,2.2177]
[1734471875837,10.40425543,225.54,225.45,2.16]
[1734471876138,2.2171,225.53,225.45,2.16]
[1734471877136,2.2169,225.55,225.45,2.16]
[1734471877741,2.217,225.54,225.49,2.2174]
[1734471877930,1.5529,225.57,225.5,2.16]
[1734471878239,2.2166,225.58,225.54,2.217]
[1734471878437,10.40425543,225.6,225.53,2.16]
[1734471878739,2.2163,225.61,225.56,2.2168]
[1734471880344,2.2164,225.6,225.55,2.2169]
[1734471886846,10.40425543,225.58,225.5,2.2173]
[1734471887151,10.40425543,225.58,225.48,2.16]
[1734471887449,2.2171,225.53,225.48,4.3775]
[1734471887849,2.2171,225.53,225.48,2.2175]
[1734471888049,2.2172,225.52,225.48,2.16]
[1734471889045,2.2172,225.52,225.48,4.3775]
[1734471890951,2.2171,225.53,225.48,4.3775]
[1734471892054,8.86855248,225.53,225.48,4.3775]
[1734471893058,2.2172,225.52,225.48,2.16]
[1734471895756,2.2169,225.55,225.48,8.81145248]
[1734471896863,2.2168,225.56,225.48,8.81145248]
[1734471897463,8.86825248,225.57,225.52,2.2171]
[1734471897669,8.86825248,225.57,225.53,2.12]
[1734471898368,6.65145248,225.55,225.53,2.12]
[1734471899362,10.83125282,225.62,225.53,2.12]
[1734471899568,6.65145248,225.58,225.53,2.12]
[1734471899867,8.86815248,225.58,225.53,4.337]
[1734471900969,2.12,225.63,225.55,2.2169]
[1734471901169,6.65145248,225.59,225.55,2.2169]
[1734471902170,4.3855,225.64,225.55,2.2169]
[1734471902369,6.65145248,225.61,225.55,2.2169]
[1734471902570,2.2165,225.59,225.55,2.2169]
[1734471903369,8.86785248,225.61,225.56,2.2167]
[1734471903764,2.8583,225.64,225.56,6.65145248]
[1734471903963,6.65145248,225.63,225.56,6.65145248]
[1734471904277,2.2163,225.62,225.56,6.65145248]
[1734471905164,1.4224,225.64,225.58,6.65145248]
[1734471905371,10.82681866,225.69,225.58,8.77145248]
[1734471905571,6.65145248,225.62,225.58,2.12]
[1734471905768,8.86795248,225.6,225.55,2.2169]
[1734471905965,2.2165,225.6,225.57,2.12]
[1734471906170,10.8252315,225.67,225.57,2.12]
[1734471906473,6.65145248,225.63,225.57,2.12]
[1734471906674,6.77181228,225.69,225.57,2.12]
[1734471906967,6.65145248,225.64,225.57,2.12]
[1734471907373,8.86755248,225.64,225.59,2.2164]
[1734471907573,6.65145248,225.64,225.59,2.2164]
[1734471908274,10.82796347,225.68,225.58,6.65145248]
[1734471908469,6.65145248,225.65,225.58,6.65145248]
[1734471908667,2.2154,225.7,225.66,2.2157]
[1734471908873,43.80223841,225.73,225.67,2.12]
[1734471909273,2.2157,225.67,225.62,2.2161]
[1734471909468,6.65145248,225.65,225.55,1.5533]
[1734471909674,6.65145248,225.65,225.58,6.65145248]
[1734471909977,6.65145248,225.61,225.59,2.12]
[1734471910272,6.65145248,225.61,225.54,1.451]
[1734471910577,6.65145248,225.55,225.5,2.12]
[1734471910778,6.65145248,225.51,225.5,2.12]
[1734471910977,2.2174,225.5,225.48,2.12]
[1734471911977,10.39282575,225.57,225.48,2.12]
[1734471912568,2.2174,225.5,225.47,2.12]
[1734471912775,5.0656,225.59,225.47,2.12]
[1734471912776,10.39282575,225.57,225.47,2.12]
[1734471913174,2.2171,225.53,225.47,2.12]
[1734471913369,10.39282575,225.57,225.47,2.12]
[1734471915380,5.0656,225.59,225.47,2.12]
[1734471915381,2.2175,225.49,225.47,2.12]
[1734471915676,2.2175,225.49,225.44,7.67254228]
[1734471915882,2.2176,225.48,225.41,2.2182]
[1734471916082,10.39282575,225.54,225.42,2.12]
[1734471916479,10.39282575,225.57,225.42,2.12]
[1734471917174,10.39282575,225.57,225.46,2.2177]
[1734471917376,10.39282575,225.57,225.47,2.12]
[1734471917576,10.39282575,225.57,225.48,2.12]
[1734471918377,2.2171,225.53,225.48,4.3375]
[1734471919971,2.9456,225.59,225.48,4.3375]
[1734471919972,2.2172,225.52,225.48,4.3375]
[1734471920171,2.2172,225.52,225.48,2.12]
[1734471920575,21.25351835,225.57,225.48,2.12]
[1734471920773,10.8606926,225.56,225.48,2.12]
[1734471921481,10.39282575,225.57,225.48,2.12]
[1734471922289,10.39282575,225.54,225.46,2.12]
[1734471922888,2.2172,225.52,225.46,2.12]
[1734471923184,2.12,225.56,225.46,2.12]
[1734471923390,2.9456,225.59,225.46,2.12]
[1734471923585,21.00375715,225.59,225.46,2.12]
[1734471923780,2.2172,225.53,225.47,10.39282575]
[1734471923985,2.9456,225.59,225.47,10.39282575]
[1734471924181,13.80944707,225.59,225.47,10.39282575]
[1734471924377,2.2169,225.56,225.51,2.2172]
[1734471924686,13.80944707,225.59,225.52,2.14]
[1734471924887,13.80944707,225.59,225.51,2.2172]
[1734471925185,13.80944707,225.59,225.52,4.3571]
[1734471925486,2.2169,225.56,225.52,4.3571]
[1734471934092,2.2169,225.56,225.52,11.0053089]
[1734471934486,2.2169,225.55,225.52,11.0053089]
[1734471936987,2.2169,225.55,225.52,8.7882089]
[1734471938188,2.2171,225.53,225.52,2.14]
[1734471938388,2.2171,225.53,225.49,8.8656089]
[1734471938592,2.2171,225.53,225.5,2.14]
[1734471939097,2.2171,225.53,225.51,6.6482089]
[1734471939394,2.2168,225.56,225.51,8.8655089]
[1734471939594,2.2168,225.56,225.51,6.6482089]
[1734471939889,2.2168,225.56,225.53,6.6482089]
[1734471941198,2.2169,225.55,225.53,6.6482089]
[1734471941393,2.2169,225.55,225.51,8.8654089]
[1734471942896,6.6482089,225.57,225.52,2.14]
[1734471943096,6.6482089,225.57,225.53,2.14]
[1734471943489,6.6482089,225.55,225.46,2.2177]
[1734471943694,18.07861334,225.59,225.44,6.6482089]
[1734471943695,6.6482089,225.51,225.44,6.6482089]
[1734471943998,10.39753487,225.52,225.45,2.14]
[1734471944394,1.4883,225.51,225.45,2.14]
[1734471944794,1.4883,225.51,225.42,0.2104]
[1734471945094,1.4883,225.51,225.43,2.14]
[1734471945499,12.35356571,225.51,225.43,2.14]
[1734471945695,1.4883,225.51,225.43,2.14]
[1734471945993,2.218,225.43,225.42,0.2104]
[1734471949194,2.2185,225.39,225.37,2.14]
[1734471949791,2.2189,225.35,225.25,1.4199]
[1734471949991,2.2189,225.35,225.27,10.39753487]
[1734471950501,2.2189,225.35,225.28,2.14]
[1734471950701,2.2187,225.37,225.29,5.23707133]
[1734471950902,1.4268,225.42,225.3,2.14]
[1734471951201,1.4268,225.42,225.3,12.53753487]
[1734471952300,2.2187,225.37,225.32,2.2191]
[1734471953101,2.2188,225.36,225.31,2.2192]
[1734471955398,2.2188,225.36,225.32,2.12]
[1734471955705,3.5468,225.42,225.31,2.12]
[1734471955901,3.5468,225.42,225.31,4.3392]
[1734471956404,2.2187,225.37,225.31,4.3392]
[1734471957304,2.2187,225.37,225.32,2.219]
[1734471960404,1.4268,225.42,225.31,2.12]
[1734471960810,1.4268,225.42,225.33,10.39753487]
[1734471961209,2.2184,225.4,225.34,2.2189]
[1734471961802,2.2185,225.39,225.35,2.2188]
[1734471962006,1.4268,225.42,225.35,2.2188]
[1734471962205,1.4268,225.42,225.33,10.39753487]
[1734471962410,1.4268,225.42,225.34,2.12]
[1734471962908,2.2183,225.41,225.37,2.2186]
[1734471963409,1.4268,225.42,225.34,2.12]
[1734471963611,2.2184,225.4,225.36,2.2187]
[1734471963812,1.4268,225.42,225.34,2.12]
[1734471964809,2.2187,225.36,225.34,2.12]
[1734471966806,2.2187,225.36,225.32,2.2191]
[1734471967111,2.2187,225.36,225.32,4.3391]
[1734471968110,2.2189,225.35,225.32,2.12]
[1734471968408,3.5468,225.42,225.28,2.12]
[1734471968409,6.66062637,225.33,225.28,2.12]
[1734471968608,6.66062637,225.31,225.28,2.12]
[1734471968813,8.87992637,225.31,225.28,2.12]
[1734471969016,6.66062637,225.33,225.28,2.12]
[1734471969412,2.2192,225.32,225.28,2.12]
[1734471970213,6.66062637,225.33,225.28,2.12]
[1734471970411,2.2193,225.31,225.28,2.12]
[1734471971716,2.2192,225.32,225.28,4.3395]
[1734471972016,6.66062637,225.33,225.28,2.12]
[1734471973216,2.2192,225.31,225.28,2.12]
[1734471975510,6.66062637,225.33,225.28,2.12]
[1734471975713,2.12,225.41,225.32,6.66062637]
[1734471975913,6.66062637,225.38,225.32,6.66062637]
[1734471976519,2.2187,225.37,225.33,2.2189]
[1734471976822,1.4268,225.42,225.34,6.66062637]
[1734471976823,6.66062637,225.4,225.34,6.66062637]